[Event "Early-Titled-Tuesday-Blitz-February-13-2024"]
[Site "Chess.com"]
[Date "2024.02.13"]
[Round "1"]
[White "kylelancman"]
[Black "FontVella8"]
[Result "0-1"]
[WhiteElo "2400"]
[BlackElo "2732"]
[TimeControl "180+1"]
[EndTime "8:05:21 PST"]
[Termination "FontVella8 won by resignation"]

1. d4 {[%clk 0:03:00.9]} 1... Nf6 {[%clk 0:02:58.2]} 2. Nf3 {[%clk 0:03:00]}
2... e6 {[%clk 0:02:58.7]} 3. e3 {[%clk 0:02:59.1]} 3... c5 {[%clk 0:02:57.9]}
4. Bd3 {[%clk 0:02:55]} 4... b6 {[%clk 0:02:58]} 5. O-O {[%clk 0:02:53.2]} 5...
Bb7 {[%clk 0:02:58.5]} 6. b3 {[%clk 0:02:50.6]} 6... Be7 {[%clk 0:02:58.7]} 7.
Bb2 {[%clk 0:02:49.7]} 7... O-O {[%clk 0:02:59.1]} 8. Nbd2 {[%clk 0:02:47.6]}
8... d6 {[%clk 0:02:59.4]} 9. Qe2 {[%clk 0:02:45.1]} 9... Nbd7 {[%clk
0:02:59.7]} 10. e4 {[%clk 0:02:42.3]} 10... Qc7 {[%clk 0:02:59.9]} 11. c4 {[%clk
0:02:39.3]} 11... cxd4 {[%clk 0:02:59]} 12. Nxd4 {[%clk 0:02:38.6]} 12... a6
{[%clk 0:02:59.3]} 13. Rac1 {[%clk 0:02:37.2]} 13... Rad8 {[%clk 0:02:55.3]} 14.
Kh1 {[%clk 0:02:35.5]} 14... Qb8 {[%clk 0:02:52.5]} 15. f3 {[%clk 0:02:34.3]}
15... Rfe8 {[%clk 0:02:51]} 16. Rfd1 {[%clk 0:02:33.6]} 16... Bf8 {[%clk
0:02:31.5]} 17. Qf2 {[%clk 0:02:31.5]} 17... d5 {[%clk 0:02:28.2]} 18. cxd5
{[%clk 0:02:28.2]} 18... exd5 {[%clk 0:02:28.3]} 19. Nc6 {[%clk 0:02:24.4]}
19... Bxc6 {[%clk 0:02:28.3]} 20. Rxc6 {[%clk 0:02:25.3]} 20... dxe4 {[%clk
0:02:19.8]} 21. Nxe4 {[%clk 0:02:21.4]} 21... Nxe4 {[%clk 0:02:18.7]} 22. Bxe4
{[%clk 0:02:14.2]} 22... Nc5 {[%clk 0:02:16.1]} 23. Rf1 {[%clk 0:01:51.9]} 23...
Qf4 {[%clk 0:02:01.2]} 24. Qg3 {[%clk 0:01:38.6]} 24... Rxe4 {[%clk 0:01:47.1]}
25. Rxb6 {[%clk 0:01:21.8]} 25... Qxg3 {[%clk 0:01:42.3]} 26. hxg3 {[%clk
0:01:22.7]} 26... Re2 {[%clk 0:01:42.8]} 27. b4 {[%clk 0:01:05.4]} 27... Nd3
{[%clk 0:01:36]} 28. Bc3 {[%clk 0:01:00.6]} 28... Rxa2 {[%clk 0:01:33.4]} 29.
Ra1 {[%clk 0:00:55.8]} 29... Rxa1+ {[%clk 0:01:30.8]} 30. Bxa1 {[%clk 0:00:56]}
30... Nxb4 {[%clk 0:01:31.3]} 31. Bc3 {[%clk 0:00:55.9]} 31... a5 {[%clk
0:01:30.1]} 32. Rb5 {[%clk 0:00:56]} 32... Rd3 {[%clk 0:01:16.3]} 0-1

[Event "Early-Titled-Tuesday-Blitz-February-13-2024"]
[Site "Chess.com"]
[Date "2024.02.13"]
[Round "1"]
[White "deribas12345"]
[Black "marsofsilva"]
[Result "1-0"]
[WhiteElo "2565"]
[BlackElo "2061"]
[TimeControl "180+1"]
[EndTime "8:05:25 PST"]
[Termination "deribas12345 won on time"]

1. d4 {[%clk 0:02:59.5]} 1... d5 {[%clk 0:03:00]} 2. c4 {[%clk 0:02:59.4]} 2...
e6 {[%clk 0:02:59.9]} 3. Nc3 {[%clk 0:02:59.2]} 3... c5 {[%clk 0:03:00]} 4. e3
{[%clk 0:02:58.2]} 4... Nc6 {[%clk 0:02:58.1]} 5. Nf3 {[%clk 0:02:58]} 5... cxd4
{[%clk 0:02:51.9]} 6. exd4 {[%clk 0:02:55.3]} 6... Be7 {[%clk 0:02:52]} 7. cxd5
{[%clk 0:02:51.5]} 7... exd5 {[%clk 0:02:51.8]} 8. Bb5 {[%clk 0:02:52.1]} 8...
Nf6 {[%clk 0:02:50.8]} 9. Ne5 {[%clk 0:02:47.2]} 9... Qb6 {[%clk 0:02:29]} 10.
O-O {[%clk 0:02:46.5]} 10... O-O {[%clk 0:02:28.4]} 11. Re1 {[%clk 0:02:45.3]}
11... Nxd4 {[%clk 0:02:19.8]} 12. Be3 {[%clk 0:02:43.7]} 12... Bc5 {[%clk
0:02:10.1]} 13. Nd3 {[%clk 0:02:41.2]} 13... Nxb5 {[%clk 0:01:55.7]} 14. Bxc5
{[%clk 0:02:39.6]} 14... Nxc3 {[%clk 0:01:44.2]} 15. bxc3 {[%clk 0:02:38.9]}
15... Qc7 {[%clk 0:01:38]} 16. Bxf8 {[%clk 0:02:38.2]} 16... Kxf8 {[%clk
0:01:38.9]} 17. Qb3 {[%clk 0:02:27.1]} 17... Be6 {[%clk 0:01:28.6]} 18. Rac1
{[%clk 0:02:21.9]} 18... Rc8 {[%clk 0:01:21.9]} 19. Qa3+ {[%clk 0:02:20.3]}
19... Kg8 {[%clk 0:01:19.5]} 20. Qxa7 {[%clk 0:02:20.3]} 20... Ne4 {[%clk
0:01:13.4]} 21. Qd4 {[%clk 0:02:19.9]} 21... Nxc3 {[%clk 0:01:01.9]} 22. Nf4
{[%clk 0:02:15.8]} 22... g5 {[%clk 0:00:49.1]} 23. Nxe6 {[%clk 0:01:54.4]} 23...
fxe6 {[%clk 0:00:11.5]} 24. Kh1 {[%clk 0:01:53.5]} 24... e5 {[%clk 0:00:05.1]}
25. Qxe5 {[%clk 0:01:49.2]} 1-0

[Event "Early-Titled-Tuesday-Blitz-February-13-2024"]
[Site "Chess.com"]
[Date "2024.02.13"]
[Round "1"]
[White "Lukianoo"]
[Black "Kotofeyca"]
[Result "1-0"]
[WhiteElo "2807"]
[BlackElo "2445"]
[TimeControl "180+1"]
[EndTime "8:05:27 PST"]
[Termination "Lukianoo won by resignation"]

1. e4 {[%clk 0:03:00.9]} 1... c5 {[%clk 0:02:59.7]} 2. Nf3 {[%clk 0:03:00.9]}
2... d6 {[%clk 0:03:00.3]} 3. d4 {[%clk 0:03:00.9]} 3... cxd4 {[%clk 0:03:01.2]}
4. Qxd4 {[%clk 0:03:01.4]} 4... a6 {[%clk 0:03:00.4]} 5. h3 {[%clk 0:03:00]}
5... Nc6 {[%clk 0:03:00.7]} 6. Qe3 {[%clk 0:03:00.2]} 6... Nf6 {[%clk
0:03:00.4]} 7. c4 {[%clk 0:02:59.5]} 7... e6 {[%clk 0:02:47.1]} 8. Be2 {[%clk
0:02:57.9]} 8... Be7 {[%clk 0:02:45.5]} 9. O-O {[%clk 0:02:57.6]} 9... O-O
{[%clk 0:02:46.1]} 10. Rd1 {[%clk 0:02:57.5]} 10... Qc7 {[%clk 0:02:33.3]} 11.
Nc3 {[%clk 0:02:57.3]} 11... Ne5 {[%clk 0:02:25.6]} 12. b3 {[%clk 0:02:50.2]}
12... Nxf3+ {[%clk 0:02:22.8]} 13. Bxf3 {[%clk 0:02:51.1]} 13... Bd7 {[%clk
0:02:22.3]} 14. Bb2 {[%clk 0:02:48.1]} 14... Rab8 {[%clk 0:02:21.8]} 15. Rac1
{[%clk 0:02:47.4]} 15... Qa5 {[%clk 0:02:15.5]} 16. a3 {[%clk 0:02:43.8]} 16...
Rfc8 {[%clk 0:02:05.5]} 17. Be2 {[%clk 0:02:17]} 17... b5 {[%clk 0:01:45.6]} 18.
b4 {[%clk 0:02:16.6]} 18... Qd8 {[%clk 0:01:42.5]} 19. c5 {[%clk 0:02:09.9]}
19... dxc5 {[%clk 0:01:31.8]} 20. e5 {[%clk 0:02:09.4]} 20... Ne8 {[%clk
0:00:54.6]} 21. bxc5 {[%clk 0:02:04.4]} 21... Bxc5 {[%clk 0:00:50.5]} 22. Qg3
{[%clk 0:02:03]} 22... Qb6 {[%clk 0:00:43.6]} 23. Ne4 {[%clk 0:02:02]} 23... Rb7
{[%clk 0:00:27]} 24. Rxc5 {[%clk 0:01:54.8]} 24... Rxc5 {[%clk 0:00:26.2]} 25.
Bd4 {[%clk 0:01:54.6]} 25... Qc6 {[%clk 0:00:15.9]} 26. Nxc5 {[%clk 0:01:53.4]}
26... Rc7 {[%clk 0:00:13.9]} 27. Bf3 {[%clk 0:01:52.5]} 27... Qb6 {[%clk
0:00:09.8]} 28. Nxd7 {[%clk 0:01:51]} 1-0

[Event "Early-Titled-Tuesday-Blitz-February-13-2024"]
[Site "Chess.com"]
[Date "2024.02.13"]
[Round "1"]
[White "Nemegejas"]
[Black "Rakesh"]
[Result "1-0"]
[WhiteElo "2839"]
[BlackElo "2465"]
[TimeControl "180+1"]
[EndTime "8:05:29 PST"]
[Termination "Nemegejas won by resignation"]

1. Nf3 {[%clk 0:03:00.9]} 1... Nf6 {[%clk 0:02:57.9]} 2. g3 {[%clk 0:03:01.2]}
2... d5 {[%clk 0:02:58]} 3. Bg2 {[%clk 0:03:01.6]} 3... c5 {[%clk 0:02:58.6]} 4.
O-O {[%clk 0:03:01.1]} 4... Nc6 {[%clk 0:02:59.5]} 5. d4 {[%clk 0:03:01.6]} 5...
Bg4 {[%clk 0:02:57.3]} 6. Ne5 {[%clk 0:03:00.8]} 6... e6 {[%clk 0:02:57]} 7.
Nxg4 {[%clk 0:02:57.9]} 7... Nxg4 {[%clk 0:02:57.1]} 8. e4 {[%clk 0:02:53.2]}
8... Nf6 {[%clk 0:02:57.5]} 9. exd5 {[%clk 0:02:51.9]} 9... exd5 {[%clk
0:02:57.1]} 10. dxc5 {[%clk 0:02:11.3]} 10... Bxc5 {[%clk 0:02:55.7]} 11. Nc3
{[%clk 0:02:11.4]} 11... O-O {[%clk 0:02:55.2]} 12. Nxd5 {[%clk 0:02:10.2]}
12... Nxd5 {[%clk 0:02:50.7]} 13. Qxd5 {[%clk 0:01:53.9]} 13... Qb6 {[%clk
0:02:50.2]} 14. c3 {[%clk 0:01:52.9]} 14... a5 {[%clk 0:02:48.3]} 15. Qb3 {[%clk
0:01:49.4]} 15... Qa7 {[%clk 0:02:42.8]} 16. Bf4 {[%clk 0:01:42.5]} 16... Rad8
{[%clk 0:02:42.4]} 17. Qc2 {[%clk 0:01:41.2]} 17... h6 {[%clk 0:02:38.2]} 18.
Rfe1 {[%clk 0:01:37.7]} 18... g5 {[%clk 0:02:37.2]} 19. Be3 {[%clk 0:01:35.2]}
19... Rfe8 {[%clk 0:02:33.1]} 20. Bxc5 {[%clk 0:01:21.2]} 20... Qxc5 {[%clk
0:02:34]} 21. Rad1 {[%clk 0:01:06.1]} 21... Rxe1+ {[%clk 0:02:28.4]} 22. Rxe1
{[%clk 0:01:05.9]} 22... Nb4 {[%clk 0:02:29.1]} 23. Qe2 {[%clk 0:00:53.8]} 23...
Nxa2 {[%clk 0:02:22.6]} 24. Bxb7 {[%clk 0:00:43.6]} 24... a4 {[%clk 0:02:22.7]}
25. Ra1 {[%clk 0:00:38.9]} 25... Nxc3 {[%clk 0:02:04.7]} 26. bxc3 {[%clk
0:00:38.5]} 26... Qxc3 {[%clk 0:02:05.6]} 27. Rxa4 {[%clk 0:00:32.2]} 27... Rd2
{[%clk 0:02:01.7]} 28. Qe3 {[%clk 0:00:24.2]} 28... Qb2 {[%clk 0:01:51.2]} 29.
Bf3 {[%clk 0:00:13.7]} 29... Qc2 {[%clk 0:01:42.6]} 30. Ra8+ {[%clk 0:00:13.1]}
1-0

[Event "Early-Titled-Tuesday-Blitz-February-13-2024"]
[Site "Chess.com"]
[Date "2024.02.13"]
[Round "1"]
[White "DreamsAreFake"]
[Black "PoXerStar"]
[Result "1-0"]
[WhiteElo "2732"]
[BlackElo "2402"]
[TimeControl "180+1"]
[EndTime "8:05:30 PST"]
[Termination "DreamsAreFake won on time"]

1. Nf3 {[%clk 0:02:57.3]} 1... d5 {[%clk 0:02:59.5]} 2. g3 {[%clk 0:02:57.3]}
2... c6 {[%clk 0:02:59.4]} 3. Bg2 {[%clk 0:02:51.4]} 3... Bf5 {[%clk 0:02:59.8]}
4. O-O {[%clk 0:02:51.8]} 4... e6 {[%clk 0:03:00.2]} 5. d3 {[%clk 0:02:52.6]}
5... h6 {[%clk 0:03:00.3]} 6. c4 {[%clk 0:02:53.5]} 6... Nf6 {[%clk 0:03:00.1]}
7. cxd5 {[%clk 0:02:54.1]} 7... exd5 {[%clk 0:03:00.2]} 8. Nc3 {[%clk
0:02:54.9]} 8... Be7 {[%clk 0:02:24.8]} 9. Nd4 {[%clk 0:02:54.1]} 9... Bh7
{[%clk 0:02:23.4]} 10. e4 {[%clk 0:02:54.9]} 10... dxe4 {[%clk 0:02:09.9]} 11.
dxe4 {[%clk 0:02:55.8]} 11... O-O {[%clk 0:02:09.8]} 12. Be3 {[%clk 0:02:55]}
12... Na6 {[%clk 0:02:05.9]} 13. Qe2 {[%clk 0:02:53.8]} 13... Re8 {[%clk
0:01:52.9]} 14. Rfd1 {[%clk 0:02:51.6]} 14... Qa5 {[%clk 0:01:31.3]} 15. a3
{[%clk 0:02:51.5]} 15... Rad8 {[%clk 0:01:28.1]} 16. Rac1 {[%clk 0:02:49.2]}
16... Qh5 {[%clk 0:00:59.9]} 17. f3 {[%clk 0:02:48.7]} 17... Nc5 {[%clk
0:00:53.1]} 18. b4 {[%clk 0:02:46.4]} 18... Ncd7 {[%clk 0:00:44.8]} 19. Nb3
{[%clk 0:02:36.2]} 19... b6 {[%clk 0:00:36.2]} 20. Na4 {[%clk 0:02:31.2]} 20...
Ne5 {[%clk 0:00:34.8]} 21. Bd4 {[%clk 0:02:23.7]} 21... Bd6 {[%clk 0:00:26]} 22.
Rd2 {[%clk 0:02:15]} 22... Bb8 {[%clk 0:00:13.2]} 23. Rcd1 {[%clk 0:02:14.8]}
23... Bg6 {[%clk 0:00:07.7]} 24. Nb2 {[%clk 0:02:12.6]} 24... Nfd7 {[%clk
0:00:05.1]} 25. a4 {[%clk 0:02:10.9]} 25... Qg5 {[%clk 0:00:03.7]} 26. f4 {[%clk
0:02:09.8]} 26... Qe7 {[%clk 0:00:04.1]} 27. fxe5 {[%clk 0:02:09.6]} 27... Nxe5
{[%clk 0:00:04.4]} 28. Nc4 {[%clk 0:02:02]} 28... Qxb4 {[%clk 0:00:02.2]} 29.
Bxe5 {[%clk 0:01:59.6]} 29... Bxe5 {[%clk 0:00:01.6]} 30. Rxd8 {[%clk
0:01:58.5]} 1-0

[Event "Early-Titled-Tuesday-Blitz-February-13-2024"]
[Site "Chess.com"]
[Date "2024.02.13"]
[Round "1"]
[White "JiaHaoxiang"]
[Black "Mariia89"]
[Result "1-0"]
[WhiteElo "2591"]
[BlackElo "2176"]
[TimeControl "180+1"]
[EndTime "8:05:32 PST"]
[Termination "JiaHaoxiang won by checkmate"]

1. d4 {[%clk 0:02:59.6]} 1... Nf6 {[%clk 0:02:59.5]} 2. Bf4 {[%clk 0:02:57.3]}
2... c5 {[%clk 0:02:59.4]} 3. d5 {[%clk 0:02:52]} 3... d6 {[%clk 0:02:59.3]} 4.
Nc3 {[%clk 0:02:51.5]} 4... b5 {[%clk 0:02:57.9]} 5. Nxb5 {[%clk 0:02:42.5]}
5... Qa5+ {[%clk 0:02:47.2]} 6. Nc3 {[%clk 0:02:42.3]} 6... Qb4 {[%clk
0:02:20.1]} 7. Qd2 {[%clk 0:02:29.4]} 7... Ba6 {[%clk 0:02:06.7]} 8. Nf3 {[%clk
0:02:25.1]} 8... g6 {[%clk 0:02:03.1]} 9. e3 {[%clk 0:02:22.5]} 9... Bxf1 {[%clk
0:02:02.5]} 10. Kxf1 {[%clk 0:02:22.9]} 10... Bg7 {[%clk 0:02:02.3]} 11. a3
{[%clk 0:02:12.7]} 11... Qb6 {[%clk 0:01:47.5]} 12. h4 {[%clk 0:02:10.2]} 12...
h5 {[%clk 0:01:47.1]} 13. Ng5 {[%clk 0:02:01.7]} 13... Nbd7 {[%clk 0:01:36.2]}
14. Rb1 {[%clk 0:02:01.6]} 14... Ng4 {[%clk 0:01:30.6]} 15. f3 {[%clk
0:02:01.3]} 15... Nge5 {[%clk 0:01:30.4]} 16. Kf2 {[%clk 0:01:57.9]} 16... Nc4
{[%clk 0:01:23.1]} 17. Qe2 {[%clk 0:01:58.1]} 17... Nxb2 {[%clk 0:01:14.7]} 18.
Na4 {[%clk 0:01:56.3]} 18... Qb7 {[%clk 0:01:13.1]} 19. Nxb2 {[%clk 0:01:55.3]}
19... Bxb2 {[%clk 0:01:13]} 20. c3 {[%clk 0:01:55.4]} 20... Rb8 {[%clk
0:01:12.1]} 21. e4 {[%clk 0:01:48.8]} 21... c4 {[%clk 0:00:37.7]} 22. Bc1 {[%clk
0:01:37.1]} 22... Qb6+ {[%clk 0:00:37.8]} 23. Kg3 {[%clk 0:01:36.7]} 23... Bxc3
{[%clk 0:00:24.2]} 24. Rxb6 {[%clk 0:01:36.2]} 24... Rxb6 {[%clk 0:00:24.8]} 25.
Qxc4 {[%clk 0:01:36]} 25... Be5+ {[%clk 0:00:17.6]} 26. f4 {[%clk 0:01:36.1]}
26... Bg7 {[%clk 0:00:16.9]} 27. Qc8# {[%clk 0:01:35.6]} 1-0

[Event "Early-Titled-Tuesday-Blitz-February-13-2024"]
[Site "Chess.com"]
[Date "2024.02.13"]
[Round "1"]
[White "Payyappat"]
[Black "HansOnTwitch"]
[Result "0-1"]
[WhiteElo "2550"]
[BlackElo "3170"]
[TimeControl "180+1"]
[EndTime "8:05:34 PST"]
[Termination "HansOnTwitch won by checkmate"]

1. e4 {[%clk 0:03:00.9]} 1... c5 {[%clk 0:02:56.8]} 2. Nf3 {[%clk 0:02:56.8]}
2... d6 {[%clk 0:02:56.5]} 3. d4 {[%clk 0:02:55.6]} 3... cxd4 {[%clk 0:02:57.4]}
4. Nxd4 {[%clk 0:02:56.1]} 4... Nf6 {[%clk 0:02:58]} 5. Nc3 {[%clk 0:02:55.9]}
5... a6 {[%clk 0:02:58.4]} 6. h4 {[%clk 0:02:48.5]} 6... Nc6 {[%clk 0:02:53.4]}
7. Be3 {[%clk 0:02:44.9]} 7... Ng4 {[%clk 0:02:52.1]} 8. Qd2 {[%clk 0:02:33.8]}
8... Nxe3 {[%clk 0:02:51]} 9. Qxe3 {[%clk 0:02:34.7]} 9... g6 {[%clk 0:02:34.4]}
10. O-O-O {[%clk 0:02:28]} 10... Bg7 {[%clk 0:02:32.6]} 11. Nxc6 {[%clk
0:02:26.3]} 11... bxc6 {[%clk 0:02:33.5]} 12. f4 {[%clk 0:02:19.2]} 12... Qa5
{[%clk 0:02:32.2]} 13. e5 {[%clk 0:02:07.3]} 13... dxe5 {[%clk 0:02:29.2]} 14.
Qe4 {[%clk 0:02:06.6]} 14... O-O {[%clk 0:02:24.9]} 15. Qxc6 {[%clk 0:01:47.8]}
15... Be6 {[%clk 0:02:09.3]} 16. f5 {[%clk 0:01:36.1]} 16... gxf5 {[%clk
0:02:01.7]} 17. g4 {[%clk 0:01:05.8]} 17... Rfc8 {[%clk 0:01:59.9]} 18. Qg2
{[%clk 0:00:48.9]} 18... fxg4 {[%clk 0:01:51.5]} 19. Bd3 {[%clk 0:00:37]} 19...
Rab8 {[%clk 0:01:50.1]} 20. Qe4 {[%clk 0:00:33.2]} 20... f5 {[%clk 0:01:49.5]}
21. Qe3 {[%clk 0:00:28.6]} 21... e4 {[%clk 0:01:47.4]} 22. Bxe4 {[%clk
0:00:21.3]} 22... fxe4 {[%clk 0:01:47.5]} 23. Qxe4 {[%clk 0:00:21.2]} 23... Bf5
{[%clk 0:01:46.9]} 24. Qf4 {[%clk 0:00:16.1]} 24... Rxb2 {[%clk 0:01:44.2]} 25.
Rd5 {[%clk 0:00:01.7]} 25... Rxc2+ {[%clk 0:01:43.4]} 26. Kd1 {[%clk 0:00:02]}
26... Qxc3 {[%clk 0:01:43.7]} 27. Qxf5 {[%clk 0:00:02.3]} 27... Qa1# {[%clk
0:01:41.4]} 0-1

[Event "Early-Titled-Tuesday-Blitz-February-13-2024"]
[Site "Chess.com"]
[Date "2024.02.13"]
[Round "1"]
[White "mertfelin"]
[Black "Sl4werThanYou"]
[Result "0-1"]
[WhiteElo "2285"]
[BlackElo "2635"]
[TimeControl "180+1"]
[EndTime "8:05:35 PST"]
[Termination "Sl4werThanYou won by checkmate"]

1. e4 {[%clk 0:03:00.2]} 1... g6 {[%clk 0:02:58.2]} 2. d4 {[%clk 0:03:00.2]}
2... Bg7 {[%clk 0:02:59.1]} 3. Nf3 {[%clk 0:03:00.9]} 3... d6 {[%clk 0:02:55.9]}
4. Be3 {[%clk 0:02:58.6]} 4... Nf6 {[%clk 0:02:54.8]} 5. Nc3 {[%clk 0:02:57.7]}
5... O-O {[%clk 0:02:53.4]} 6. Qd2 {[%clk 0:02:57.4]} 6... Bg4 {[%clk
0:02:46.4]} 7. Be2 {[%clk 0:02:55.9]} 7... Nc6 {[%clk 0:02:45.9]} 8. h3 {[%clk
0:02:54.9]} 8... Bxf3 {[%clk 0:02:45.3]} 9. Bxf3 {[%clk 0:02:55.8]} 9... Nd7
{[%clk 0:02:45.6]} 10. Ne2 {[%clk 0:02:51.2]} 10... e5 {[%clk 0:02:44.2]} 11. c3
{[%clk 0:02:51.8]} 11... a5 {[%clk 0:02:42.2]} 12. a4 {[%clk 0:02:51.4]} 12...
Re8 {[%clk 0:02:27.1]} 13. O-O {[%clk 0:02:46.7]} 13... exd4 {[%clk 0:02:26.6]}
14. Nxd4 {[%clk 0:02:47.4]} 14... Nf6 {[%clk 0:02:18.5]} 15. Qc2 {[%clk
0:02:11.7]} 15... Nd7 {[%clk 0:02:02.8]} 16. Nb5 {[%clk 0:02:02.6]} 16... Nde5
{[%clk 0:01:58.5]} 17. Be2 {[%clk 0:02:03.2]} 17... Nd7 {[%clk 0:01:56.5]} 18.
Rfe1 {[%clk 0:01:59]} 18... Rc8 {[%clk 0:01:53.5]} 19. Qb3 {[%clk 0:01:55]}
19... Rxe4 {[%clk 0:01:49.6]} 20. Bf3 {[%clk 0:01:55.3]} 20... Re8 {[%clk
0:01:47.4]} 21. Bd5 {[%clk 0:01:55.7]} 21... Rf8 {[%clk 0:01:44.8]} 22. Na7
{[%clk 0:01:50]} 22... Nxa7 {[%clk 0:01:41.3]} 23. Bxa7 {[%clk 0:01:49.9]} 23...
c6 {[%clk 0:01:41.5]} 24. Bf3 {[%clk 0:01:49.3]} 24... b6 {[%clk 0:01:40.5]} 25.
Bg4 {[%clk 0:01:47.5]} 25... Ra8 {[%clk 0:01:23.1]} 26. Bxd7 {[%clk 0:01:17.4]}
26... Qxd7 {[%clk 0:01:24]} 27. Bxb6 {[%clk 0:01:18]} 27... Rab8 {[%clk
0:01:21.8]} 28. Rad1 {[%clk 0:01:16.2]} 28... Qb7 {[%clk 0:01:18.7]} 29. Rxd6
{[%clk 0:01:16.2]} 29... Qxb6 {[%clk 0:01:18.7]} 30. Qxb6 {[%clk 0:01:16.9]}
30... Rxb6 {[%clk 0:01:19.6]} 31. Re7 {[%clk 0:01:16.4]} 31... Rxb2 {[%clk
0:01:18]} 32. Rxc6 {[%clk 0:01:15.6]} 32... Ra2 {[%clk 0:01:18.8]} 33. Re4
{[%clk 0:01:15.4]} 33... Ra3 {[%clk 0:01:18.4]} 34. Rec4 {[%clk 0:01:15.3]}
34... Rd8 {[%clk 0:01:17.6]} 35. R6c5 {[%clk 0:01:14.8]} 35... Rd3 {[%clk
0:01:16.1]} 36. Rc8+ {[%clk 0:01:12.4]} 36... Bf8 {[%clk 0:01:16.1]} 37. R4c5
{[%clk 0:01:03.6]} 37... Rxa4 {[%clk 0:01:12.8]} 38. c4 {[%clk 0:01:03.6]} 38...
Kg7 {[%clk 0:01:12.7]} 39. Rb5 {[%clk 0:01:03.8]} 39... Rc3 {[%clk 0:01:11.8]}
40. Rbb8 {[%clk 0:01:02.3]} 40... Bd6 {[%clk 0:01:11]} 41. Rb6 {[%clk
0:01:03.1]} 41... Rc1# {[%clk 0:01:10.6]} 0-1

[Event "Early-Titled-Tuesday-Blitz-February-13-2024"]
[Site "Chess.com"]
[Date "2024.02.13"]
[Round "1"]
[White "Teidi96"]
[Black "djano"]
[Result "0-1"]
[WhiteElo "2301"]
[BlackElo "2647"]
[TimeControl "180+1"]
[EndTime "8:05:39 PST"]
[Termination "djano won by resignation"]

1. e4 {[%clk 0:02:45]} 1... c5 {[%clk 0:03:00.2]} 2. c3 {[%clk 0:02:38.3]} 2...
d5 {[%clk 0:02:58]} 3. exd5 {[%clk 0:02:37.5]} 3... Nf6 {[%clk 0:02:58.7]} 4. d4
{[%clk 0:02:37]} 4... cxd4 {[%clk 0:02:57]} 5. cxd4 {[%clk 0:02:37.9]} 5... Nxd5
{[%clk 0:02:56.4]} 6. Nf3 {[%clk 0:02:37.9]} 6... Nc6 {[%clk 0:02:56.8]} 7. Nc3
{[%clk 0:02:37.4]} 7... e6 {[%clk 0:02:52.4]} 8. Bd3 {[%clk 0:02:37.9]} 8... Be7
{[%clk 0:02:51.4]} 9. O-O {[%clk 0:02:37.4]} 9... O-O {[%clk 0:02:51.5]} 10. Re1
{[%clk 0:02:36.8]} 10... b6 {[%clk 0:02:47.3]} 11. a3 {[%clk 0:02:36.4]} 11...
Bb7 {[%clk 0:02:46.9]} 12. Bc2 {[%clk 0:02:36.8]} 12... Re8 {[%clk 0:02:37.8]}
13. Qd3 {[%clk 0:02:34.5]} 13... g6 {[%clk 0:02:38.3]} 14. Ba4 {[%clk
0:02:24.1]} 14... Bf6 {[%clk 0:02:34.3]} 15. Ne4 {[%clk 0:02:15.4]} 15... Bg7
{[%clk 0:02:29.8]} 16. Bg5 {[%clk 0:02:14.3]} 16... Qc7 {[%clk 0:02:26.7]} 17.
Rac1 {[%clk 0:02:12.6]} 17... Rac8 {[%clk 0:02:26]} 18. Bb3 {[%clk 0:01:55.6]}
18... Qd7 {[%clk 0:02:09.3]} 19. Bxd5 {[%clk 0:01:43.5]} 19... Qxd5 {[%clk
0:02:08.6]} 20. Nf6+ {[%clk 0:01:43.3]} 20... Bxf6 {[%clk 0:02:08.7]} 21. Bxf6
{[%clk 0:01:44.2]} 21... Qf5 {[%clk 0:02:01]} 22. Qxf5 {[%clk 0:01:41]} 22...
gxf5 {[%clk 0:01:59.3]} 23. Red1 {[%clk 0:01:16.2]} 23... Ne7 {[%clk 0:01:55.7]}
24. Bxe7 {[%clk 0:01:15.4]} 24... Rxe7 {[%clk 0:01:53]} 25. Rxc8+ {[%clk
0:01:14.4]} 25... Bxc8 {[%clk 0:01:53.9]} 26. Rc1 {[%clk 0:01:14.5]} 26... Bb7
{[%clk 0:01:51.8]} 27. Kf1 {[%clk 0:00:35.7]} 27... Rd7 {[%clk 0:01:45.9]} 28.
Ne5 {[%clk 0:00:23.2]} 28... Ba6+ {[%clk 0:01:44.5]} 29. Ke1 {[%clk 0:00:21.7]}
29... Rxd4 {[%clk 0:01:44.4]} 30. Rc7 {[%clk 0:00:21.5]} 30... Re4+ {[%clk
0:01:44.1]} 31. Kd2 {[%clk 0:00:20.4]} 31... Rxe5 {[%clk 0:01:44.3]} 32. Rxa7
{[%clk 0:00:20.4]} 32... Bf1 {[%clk 0:01:44.6]} 33. g3 {[%clk 0:00:17.2]} 33...
Re2+ {[%clk 0:01:44.6]} 34. Kc3 {[%clk 0:00:17.4]} 34... Rxf2 {[%clk 0:01:44.9]}
35. Rb7 {[%clk 0:00:17.2]} 35... b5 {[%clk 0:01:45.4]} 0-1

[Event "Early-Titled-Tuesday-Blitz-February-13-2024"]
[Site "Chess.com"]
[Date "2024.02.13"]
[Round "1"]
[White "Herzog2012"]
[Black "Beca95"]
[Result "1-0"]
[WhiteElo "2529"]
[BlackElo "2928"]
[TimeControl "180+1"]
[EndTime "8:05:40 PST"]
[Termination "Herzog2012 won by resignation"]

1. e4 {[%clk 0:03:00.9]} 1... d6 {[%clk 0:03:00.9]} 2. d4 {[%clk 0:02:59.6]}
2... Nf6 {[%clk 0:03:01.6]} 3. Nc3 {[%clk 0:02:58.7]} 3... e5 {[%clk 0:03:02.1]}
4. Nf3 {[%clk 0:02:57.5]} 4... Nbd7 {[%clk 0:03:01.9]} 5. Bc4 {[%clk 0:02:55.8]}
5... Be7 {[%clk 0:03:02.1]} 6. O-O {[%clk 0:02:55.7]} 6... h6 {[%clk 0:02:58.6]}
7. Re1 {[%clk 0:02:43.8]} 7... c6 {[%clk 0:02:57.6]} 8. a4 {[%clk 0:02:43.2]}
8... Qc7 {[%clk 0:02:57]} 9. h3 {[%clk 0:02:36.7]} 9... g5 {[%clk 0:02:56.2]}
10. b3 {[%clk 0:02:30.9]} 10... Nf8 {[%clk 0:02:56.1]} 11. Ba3 {[%clk
0:02:29.7]} 11... Ng6 {[%clk 0:02:55.8]} 12. Qd2 {[%clk 0:02:25.3]} 12... Nf4
{[%clk 0:02:54.8]} 13. Rad1 {[%clk 0:02:16.8]} 13... Rg8 {[%clk 0:02:53.9]} 14.
dxe5 {[%clk 0:02:06.6]} 14... dxe5 {[%clk 0:02:52.7]} 15. Bxe7 {[%clk
0:02:05.6]} 15... Kxe7 {[%clk 0:02:52.6]} 16. Qe3 {[%clk 0:01:59.8]} 16... b6
{[%clk 0:02:50.4]} 17. Ne2 {[%clk 0:01:57.9]} 17... g4 {[%clk 0:02:16.7]} 18.
Nh4 {[%clk 0:01:41.3]} 18... gxh3 {[%clk 0:02:06.4]} 19. g3 {[%clk 0:01:37.6]}
19... Nxe2+ {[%clk 0:02:05.6]} 20. Rxe2 {[%clk 0:01:28.4]} 20... Rg4 {[%clk
0:01:59.9]} 21. Qxh6 {[%clk 0:01:22.6]} 21... a6 {[%clk 0:01:57.7]} 22. Red2
{[%clk 0:01:13]} 22... b5 {[%clk 0:01:13.9]} 23. Rd8 {[%clk 0:01:05.1]} 23...
Rg8 {[%clk 0:00:47]} 24. Rxc8 {[%clk 0:00:56]} 1-0